bitfinex/quotes_SOLUSD_20220311
["timestamp","ask_amount","ask_price","bid_price","bid_amount"]
[1647005864743,120.8,82.869,82.782,24.5772]
[1647005864945,6.035,82.868,82.782,24.5772]
[1647005865245,120.8,82.867,82.782,24.5772]
[1647005865443,6.035,82.866,82.77,22.6931]
[1647005865644,120.8,82.864,82.771,64.76853936]
[1647005865844,6.037,82.863,82.771,64.76853936]
[1647005866046,120.8,82.862,82.771,64.76853936]
[1647005866244,39.68473931,82.849,82.771,64.76853936]
[1647005866443,30.4433,82.848,82.771,64.76853936]
[1647005867546,18.115,82.83,82.771,64.76853936]
[1647005867748,23.3312,82.847,82.78,18.1137]
[1647005868948,18.1121,82.84,82.78,18.1137]
[1647005869949,6.037,82.839,82.78,18.1137]
[1647005870148,18.114,82.83,82.78,18.1137]
[1647005870353,6.038,82.846,82.78,18.1137]
[1647005870549,23.3312,82.847,82.78,18.1137]
[1647005871372,18.1119,82.84,82.772,23.5459]
[1647005871570,6.038,82.839,82.772,23.5459]
[1647005872070,6.038,82.846,82.772,23.5459]
[1647005872471,18.1146,82.83,82.772,23.5459]
[1647005874873,6.038,82.837,82.772,23.5459]
[1647005875077,24.9816,82.838,82.78,18.1138]
[1647005876577,46.81955875,82.837,82.79,18.1117]
[1647005876776,24.9816,82.838,82.79,18.1117]
[1647005877878,50.41264288,82.837,82.79,18.1117]
[1647005880983,23.3312,82.847,82.79,18.1117]
[1647005881982,23.0734,82.859,82.791,3.04447957]
[1647005882182,23.0734,82.859,82.81,18.1046]
[1647005882382,23.0734,82.859,82.811,37.58673953]
[1647005884183,6.035,82.878,82.811,37.58673953]
[1647005884384,6.035,82.878,82.82,18.105]
[1647005884584,23.5227,82.879,82.82,18.105]
[1647005886090,6.035,82.888,82.84,18.0983]
[1647005886387,18.0989,82.9,82.84,18.0983]
[1647005887086,41.79538497,82.899,82.841,58.82472321]
[1647005888088,41.79538497,82.899,82.85,18.0983]
[1647005888890,6.033,82.918,82.85,18.0983]
[1647005889492,47.9172,82.919,82.851,120.8]
[1647005889692,47.9172,82.919,82.85,18.0983]
[1647005889891,52.21375667,82.918,82.85,18.0983]
[1647005890592,52.21375667,82.918,82.86,18.0946]
[1647005891193,6.032,82.939,82.861,120.8]
[1647005891396,24.6771,82.938,82.863,120.8]
[1647005891601,24.6771,82.938,82.88,18.0908]
[1647005892201,53.43356144,82.937,82.881,43.53055568]
[1647005892400,24.6771,82.938,82.881,43.53055568]
[1647005893200,24.6771,82.938,82.89,18.0887]
[1647005894600,24.6771,82.938,82.881,43.53055568]
[1647005894802,18.0946,82.92,82.881,43.53055568]
[1647005895401,2.2779359,82.925,82.881,43.53055568]
[1647005895601,6.031,82.937,82.881,43.53055568]
[1647005896602,48.47024787,82.936,82.881,43.53055568]
[1647005897102,18.0921,82.93,82.881,43.53055568]
[1647005898705,6.03,82.935,82.881,43.53055568]
[1647005898904,48.47024787,82.936,82.881,43.53055568]
[1647005899305,24.6771,82.938,82.881,43.53055568]
[1647005900107,24.6771,82.938,82.89,18.089]
[1647005902105,24.6771,82.938,82.881,43.53055568]
[1647005902106,18.0929,82.93,82.881,43.53055568]
[1647005902303,24.6771,82.938,82.881,43.53055568]
[1647005902304,6.03,82.937,82.881,43.53055568]
[1647005903107,24.6771,82.938,82.872,24.6642]
[1647005903310,18.0938,82.92,82.854,6.03]
[1647005903506,22.8027,82.919,82.854,6.03]
[1647005903710,22.8027,82.919,82.855,23.4548]
[1647005904209,18.0988,82.9,82.856,58.79447318]
[1647005904449,3.82425967,82.899,82.856,58.79447318]
[1647005905707,3.82425967,82.899,82.86,18.0957]
[1647005906312,3.82425967,82.899,82.856,58.79447318]
[1647005909013,18.0958,82.91,82.86,18.0958]
[1647005909814,18.0958,82.91,82.856,58.79447318]
[1647005910013,18.0989,82.9,82.856,58.79447318]
[1647005912214,18.0989,82.9,82.86,18.0963]
[1647005912416,18.0957,82.91,82.86,18.0963]
[1647005912614,6.032,82.909,82.86,18.0963]
[1647005912815,6.032,82.918,82.86,18.0963]
[1647005913418,40.64901971,82.917,82.86,18.0963]
[1647005913618,6.032,82.916,82.86,18.0963]
[1647005914214,18.0956,82.91,82.86,18.0963]
[1647005915216,18.0956,82.91,82.856,58.79447318]
[1647005918425,18.0956,82.91,82.86,18.0963]
[1647005919925,18.0956,82.91,82.856,58.79447318]
[1647005921524,18.0956,82.91,82.86,18.0964]
[1647005922530,18.0956,82.91,82.856,58.79447318]
[1647005923828,18.0956,82.91,82.855,23.4548]
[1647005924028,6.032,82.909,82.855,23.4548]
[1647005924233,18.1017,82.9,82.855,23.4548]
[1647005925030,18.1017,82.9,82.855,87.74039706]
[1647005927757,6.033,82.907,82.855,87.74039706]
[1647005927955,6.032,82.916,82.86,18.0963]
[1647005928157,6.032,82.918,82.86,18.0963]
[1647005928958,42.2707607,82.917,82.86,18.0963]
[1647005929160,6.032,82.918,82.86,18.0963]
[1647005929364,6.032,82.935,82.86,18.0963]
[1647005929559,6.032,82.936,82.86,18.0963]
[1647005929760,7.64538331,82.936,82.86,18.0963]
[1647005930163,45.52536458,82.918,82.86,18.0963]
[1647005930364,18.0954,82.91,82.86,18.0963]
[1647005931163,45.52536458,82.918,82.86,18.0963]
[1647005933066,18.0955,82.91,82.86,18.0963]
[1647005933266,45.52536458,82.918,82.86,18.0963]
[1647005934275,6.032,82.917,82.855,23.4548]
[1647005935081,18.0952,82.91,82.855,23.4548]
[1647005935283,6.032,82.909,82.855,23.4548]
[1647005935480,6.032,82.916,82.856,64.99683211]
[1647005936081,18.0983,82.9,82.856,64.99683211]
[1647005937582,18.0953,82.91,82.856,64.99683211]
[1647005938402,6.032,82.909,82.856,64.99683211]
[1647005938602,6.032,82.917,82.856,64.99683211]
[1647005939002,18.0981,82.9,82.856,64.99683211]
[1647005942613,18.0959,82.91,82.86,18.0964]
[1647005944813,138.8959,82.91,82.82,60.3301]
[1647005945014,6.033,82.909,82.83,6.0]
[1647005945216,18.1062,82.89,82.83,6.0]
[1647005945813,10.53935651,82.889,82.838,60.07592455]
[1647005947015,10.53935651,82.889,82.84,18.1003]
[1647005947516,10.53935651,82.889,82.838,60.07592455]
[1647005947717,10.53935651,82.889,82.83,6.0]
[1647005948818,10.53935651,82.889,82.838,55.77231603]
[1647005950128,6.034,82.898,82.838,55.77231603]
[1647005950330,24.4952,82.899,82.84,18.1005]
[1647005951120,52.39303072,82.898,82.84,18.1005]
[1647005952121,24.4952,82.899,82.841,120.8]
[1647005952327,6.033,82.918,82.851,120.8]
[1647005952723,6.032,82.923,82.851,120.8]
[1647005953021,22.7689,82.942,82.851,120.8]
[1647005953022,6.032,82.928,82.851,120.8]
[1647005953233,1.61338331,82.938,82.86,14.42]
[1647005953423,6.031,82.955,82.871,120.8]
[1647005953623,1.61338331,82.978,82.881,120.8]
[1647005953829,1.61338331,82.982,82.881,120.8]
[1647005954123,57.2930246,82.981,82.883,120.8]
[1647005954322,55.67964129,82.981,82.883,120.8]
[1647005954622,6.029,82.98,82.891,120.8]
[1647005954827,6.029,82.98,82.901,120.8]
[1647005955022,6.029,82.98,82.903,120.8]
[1647005955927,6.029,82.98,82.911,120.8]
[1647005956127,6.027,82.987,82.921,120.8]
[1647005956330,6.027,82.998,82.921,120.8]
[1647005956528,6.027,83.003,82.922,6.027]
[1647005956727,6.026,83.016,82.923,120.8]
[1647005956956,53.5159474,83.015,82.924,61.79831603]
[1647005957229,6.026,83.014,82.925,120.8]
[1647005957432,6.026,83.014,82.926,6.026]
[1647005957630,6.026,83.014,82.941,120.8]
[1647005957828,6.026,83.014,82.942,6.025]
[1647005958228,6.026,83.014,82.951,120.8]
[1647005958428,6.026,83.014,82.953,120.8]
[1647005959228,6.026,83.014,82.952,46.58296286]
[1647005959429,53.5159474,83.015,82.953,6.025]
[1647005959628,53.5159474,83.015,82.953,126.825]
[1647005960232,53.5159474,83.015,82.953,6.025]
[1647005960430,53.5159474,83.015,82.953,126.825]
[1647005960631,53.5159474,83.015,82.953,6.025]
[1647005963033,53.5159474,83.015,82.952,46.58296286]
[1647005965662,120.8,83.014,82.9,117.36463731]
[1647005965860,6.026,83.013,82.927,6.026]
[1647005966062,6.026,83.013,82.925,6.026]
[1647005966263,120.8,82.999,82.925,6.026]
[1647005966459,120.8,82.999,82.91,18.2161]
[1647005966460,6.026,82.998,82.91,18.2161]
[1647005966659,6.026,82.998,82.911,46.83063243]
[1647005966859,18.0873,82.96,82.911,46.83063243]
[1647005967060,2.54877369,82.959,82.912,6.027]
[1647005967863,2.54877369,82.959,82.911,46.83063243]
[1647005968362,2.54877369,82.959,82.893,6.027]
[1647005968562,2.54877369,82.959,82.882,6.029]
[1647005968763,2.54877369,82.959,82.837,5.41169676]
[1647005968764,9.07347957,82.958,82.872,6.029]
[1647005968962,3.04447957,82.958,82.882,6.029]
[1647005969162,3.04447957,82.958,82.883,58.45915205]
[1647005969462,18.0881,82.95,82.89,18.0885]
[1647005969660,18.0881,82.95,82.891,6.029]
[1647005970064,18.0881,82.95,82.884,6.029]
[1647005970464,2.54877369,82.959,82.9,18.0866]
[1647005970760,6.029,82.958,82.901,6.029]
[1647005970962,6.029,82.958,82.9,18.0866]
[1647005972263,6.029,82.958,82.89,18.0884]
[1647005972464,2.54877369,82.959,82.891,6.029]
[1647005973262,2.54877369,82.959,82.89,18.0884]
[1647005973263,6.029,82.958,82.89,18.0884]
[1647005974165,18.0898,82.94,82.89,18.0884]
[1647005974366,6.029,82.958,82.89,18.0884]
[1647005974566,26.56627369,82.959,82.89,18.0884]
[1647005974764,26.56627369,82.959,82.886,120.8]
[1647005974765,26.56627369,82.959,82.9,18.0828]
[1647005974964,26.56627369,82.959,82.901,6.029]
[1647005975164,22.6818,82.978,82.898,5.85]
[1647005975366,6.027,82.977,82.9,60.2721]
[1647005975566,6.027,82.977,82.901,6.027]
[1647005975764,6.027,82.977,82.9,60.2721]
[1647005975965,6.027,82.977,82.91,18.0828]
[1647005976167,6.027,82.977,82.912,120.8]
[1647005976365,47.23915653,82.983,82.912,120.8]
[1647005976366,47.23915653,82.983,82.913,6.027]
[1647005976565,47.23915653,82.983,82.914,120.8]
[1647005976764,47.23915653,82.983,82.915,6.027]
[1647005977169,6.027,82.987,82.915,6.027]
[1647005977968,6.027,83.009,82.916,3.04447957]
[1647005978171,54.47476886,83.008,82.941,120.8]
[1647005978368,54.47476886,83.008,82.93,74.6553]
[1647005978369,54.47476886,83.008,82.943,58.45915205]
[1647005978567,54.47476886,83.008,82.944,6.025]
[1647005979667,6.025,83.007,82.943,58.45915205]
[1647005979871,18.0778,83.0,82.943,58.45915205]
[1647005980068,6.026,82.999,82.943,58.45915205]
[1647005980671,18.0778,83.0,82.943,58.45915205]
[1647005980868,18.0785,82.99,82.94,18.0767]
[1647005981170,54.47476886,83.008,82.922,6.026]
[1647005981371,6.026,83.007,82.921,18.1163]
[1647005981570,22.8347,83.007,82.922,6.026]
[1647005981869,3.04447957,83.006,82.923,50.38249206]
[1647005982067,18.0801,82.99,82.924,6.026]
[1647005983872,18.0773,83.0,82.924,126.826]
[1647005984075,3.04447957,83.006,82.924,126.826]
[1647005984273,22.8347,83.007,82.925,3.04447957]
[1647005984475,22.8347,83.007,82.926,6.026]
[1647005984674,22.8347,83.007,82.931,120.8]
[1647005984874,22.8347,83.007,82.941,120.8]
[1647005985074,22.8347,83.007,82.942,6.025]
[1647005985274,22.8347,83.007,82.941,6.025]
[1647005985474,22.8347,83.007,82.936,6.025]
[1647005985877,18.0775,83.0,82.95,18.0748]
[1647005986075,18.0775,83.0,82.951,51.97278683]
[1647005986275,22.8347,83.007,82.932,6.025]
[1647005986474,6.026,83.006,82.932,6.025]
[1647005987076,18.0761,83.0,82.94,18.0782]
[1647005987279,18.0761,83.0,82.941,54.75156756]
[1647005988276,6.026,83.006,82.95,18.0766]
[1647005988678,22.8347,83.007,82.95,18.0766]
[1647005989278,18.0761,83.0,82.95,18.0766]
[1647005989477,22.8347,83.007,82.95,18.0766]
[1647005990980,6.025,83.006,82.942,6.025]
[1647005992183,3.04447957,83.005,82.895,217.3617]
[1647005992378,6.026,83.004,82.901,24.9081]
[1647005992581,1.61338331,83.001,82.901,24.9081]
[1647005992780,120.8,82.999,82.901,24.9081]
[1647005992980,1.58995223,82.959,82.917,46.96485838]
[1647005993582,54.7168,82.979,82.917,46.96485838]
[1647005993979,18.0823,82.97,82.917,46.96485838]
[1647005995181,18.0843,82.96,82.917,46.96485838]
[1647005996785,50.54257639,82.971,82.917,46.96485838]
[1647005996985,48.6898,82.979,82.917,46.96485838]
[1647005997985,55.713656,82.978,82.917,46.96485838]
[1647005998387,6.027,82.977,82.917,46.96485838]
[1647005999387,18.0854,82.96,82.917,46.96485838]
[1647005999590,6.027,82.977,82.917,46.96485838]
[1647006000391,18.0833,82.97,82.917,46.96485838]
[1647006000591,55.713656,82.978,82.917,46.96485838]
[1647006001498,18.0833,82.97,82.917,46.96485838]
[1647006002494,6.027,82.977,82.917,46.96485838]
[1647006003194,55.713656,82.978,82.917,46.96485838]
[1647006003595,18.0838,82.97,82.917,46.96485838]
[1647006008020,6.027,82.977,82.917,46.96485838]
[1647006009823,48.6898,82.979,82.917,46.96485838]
[1647006010623,6.027,82.978,82.917,46.96485838]
[1647006010824,53.49788494,82.978,82.917,46.96485838]
[1647006011029,18.0829,82.97,82.918,6.027]
[1647006012727,48.6898,82.979,82.918,6.027]
[1647006012925,7.64038331,82.988,82.918,126.827]
[1647006013125,6.027,82.997,82.919,3.04447957]
[1647006013326,31.47897958,83.004,82.921,120.8]
[1647006013527,31.47897958,83.004,82.923,120.8]
[1647006013727,55.46901081,83.003,82.925,120.8]
[1647006013926,55.46901081,83.003,82.926,6.026]
[1647006014134,55.46901081,83.003,82.941,120.8]
[1647006014327,55.46901081,83.003,82.95,18.0731]
[1647006014527,31.47897958,83.004,82.95,18.0731]
[1647006015327,31.47897958,83.004,82.951,6.025]
[1647006015528,42.43557823,83.003,82.951,6.025]
[1647006016529,31.47897958,83.004,82.951,6.025]
[1647006016733,0.1,83.156,82.951,6.025]
[1647006016734,1.61338331,83.028,82.951,126.825]
[1647006016931,6.27525738,83.05,82.951,129.86947957]
[1647006016932,1.61338331,83.04,82.951,129.86947957]
[1647006017134,1.61338331,83.045,82.961,120.8]
[1647006017332,6.024,83.044,82.962,6.024]
[1647006017534,52.62378394,83.037,82.962,6.024]
[1647006017942,6.024,83.036,82.963,23.8328]
[1647006018932,18.0701,83.03,82.963,23.8328]
[1647006019133,6.024,83.029,82.963,23.8328]
[1647006019835,3.04447957,83.028,82.963,23.8328]
[1647006020134,18.0722,83.02,82.963,23.8328]
[1647006020433,6.024,83.019,82.963,23.8328]
[1647006020632,9.06847957,83.019,82.963,23.8328]
[1647006020832,6.024,83.019,82.963,23.8328]
[1647006021036,6.024,83.019,82.951,6.024]
[1647006021037,18.074,83.01,82.951,6.024]
[1647006021234,3.44093715,83.008,82.943,24.6675]
[1647006021433,6.025,83.007,82.943,24.6675]
[1647006021935,3.44093715,83.008,82.945,6.025]
[1647006022434,3.44093715,83.008,82.887,4.81918958]
[1647006022435,6.025,83.007,82.918,6.025]
[1647006022635,45.6124,83.006,82.918,6.025]
[1647006022833,6.026,83.005,82.902,6.026]
[1647006023033,9.07047957,83.005,82.902,6.026]
[1647006023435,9.07047957,83.005,82.91,18.0818]
[1647006023436,18.084,82.97,82.91,18.0818]
[1647006023642,48.02879826,82.969,82.911,6.027]
[1647006025238,48.02879826,82.969,82.911,126.827]
[1647006026342,48.02879826,82.969,82.911,120.8]
[1647006026742,48.02879826,82.969,82.91,18.0818]
[1647006028345,48.02879826,82.969,82.902,18.4982]
[1647006028548,6.027,82.968,82.903,6.027]
[1647006028744,6.027,82.968,82.902,18.4982]
[1647006028945,3.04447957,82.967,82.902,18.4982]
[1647006029145,6.027,82.966,82.902,18.4982]
[1647006029345,18.0881,82.95,82.903,64.39973595]
[1647006029544,18.0881,82.95,82.902,18.4982]
[1647006030147,6.029,82.949,82.902,18.4982]
[1647006031547,18.0897,82.94,82.891,6.029]
[1647006031748,125.74,82.949,82.87,6.03]
[1647006031970,120.8,82.947,82.869,6.03]
[1647006032149,6.03,82.946,82.861,6.03]
[1647006032349,120.8,82.945,82.861,6.03]
[1647006032550,6.031,82.944,82.858,6.031]
[1647006033049,18.0945,82.92,82.847,6.031]
[1647006033250,120.8,82.929,82.839,6.032]
[1647006033251,6.032,82.919,82.839,6.032]
[1647006033447,120.8,82.927,82.839,6.032]
[1647006033647,3.04447957,82.92,82.838,67.179]
[1647006033849,3.04447957,82.92,82.815,6.032]
[1647006033850,3.04447957,82.918,82.815,6.032]
[1647006034049,3.04447957,82.918,82.819,53.86008048]
[1647006034050,120.8,82.899,82.819,53.86008048]
[1647006034251,6.033,82.898,82.819,53.86008048]
[1647006034453,120.8,82.897,82.82,6.033]
[1647006034652,6.034,82.896,82.813,6.034]
[1647006034853,6.034,82.896,82.804,6.034]
[1647006035051,120.8,82.894,82.804,6.034]
[1647006035250,6.035,82.893,82.804,6.034]
[1647006035453,120.8,82.892,82.804,6.034]
[1647006035653,120.8,82.879,82.804,6.034]
[1647006035853,6.035,82.878,82.787,6.035]
[1647006036051,6.035,82.878,82.784,6.035]
[1647006036251,3.04447957,82.877,82.776,6.035]
[1647006036450,6.035,82.876,82.777,47.87882759]
[1647006036652,6.035,82.876,82.778,6.035]
[1647006036852,3.04447957,82.875,82.778,6.035]
[1647006037055,120.8,82.873,82.778,31.37884633]
[1647006037252,18.1124,82.86,82.78,18.1114]
[1647006037455,40.08763017,82.858,82.781,6.037]
[1647006037653,6.037,82.857,82.781,31.38084633]
[1647006037853,6.037,82.857,82.782,25.34384633]
[1647006038053,6.037,82.857,82.783,6.037]
[1647006038255,18.1132,82.85,82.783,6.037]
[1647006038753,6.037,82.849,82.777,47.87882759]
[1647006038953,6.037,82.849,82.771,6.037]
[1647006039155,40.08763017,82.858,82.766,6.037]
[1647006039156,6.037,82.857,82.766,6.037]
[1647006039480,6.037,82.857,82.75,117.27808621]
[1647006039481,18.078702,82.84,82.765,6.037]
[1647006039655,6.038,82.839,82.758,17.7765]
[1647006039854,6.038,82.839,82.764,54.61804746]
[1647006040455,18.1158,82.84,82.764,54.61804746]
[1647006040652,6.038,82.839,82.764,54.61804746]
[1647006041057,18.1158,82.84,82.765,6.038]
[1647006043359,6.038,82.855,82.77,18.1135]
[1647006043566,6.038,82.855,82.771,6.037]
[1647006044360,6.038,82.855,82.767,6.037]
[1647006044563,3.04447957,82.854,82.764,54.61804746]
[1647006044858,18.1137,82.85,82.764,54.61804746]
[1647006045063,6.038,82.849,82.764,54.61804746]
[1647006045760,6.038,82.853,82.764,54.61804746]
[1647006046995,6.038,82.853,82.77,18.1133]
[1647006050064,6.038,82.853,82.79,18.108]
[1647006050271,6.038,82.853,82.791,47.73723143]
[1647006050464,22.5885,82.856,82.791,47.73723143]
[1647006050664,22.5885,82.856,82.792,120.8]
[1647006050869,6.035,82.873,82.793,6.0]
[1647006051069,24.0392,82.891,82.793,21.2738203]
[1647006051271,24.0392,82.891,82.8,18.1061]
[1647006051469,24.0392,82.891,82.801,6.0]
[1647006051668,6.035,82.89,82.801,129.84447957]
[1647006051868,40.25804775,82.889,82.801,9.04447957]
[1647006052068,6.035,82.888,82.802,3.04447957]
[1647006052268,6.035,82.888,82.803,6.0]
[1647006053069,6.035,82.888,82.82,18.1028]
[1647006053274,6.035,82.888,82.821,54.61804746]
[1647006053772,3.04447957,82.887,82.804,24.2902]
[1647006053971,3.04447957,82.887,82.795,24.9994]
[1647006054173,120.8,82.886,82.772,3.04447957]
[1647006054372,146.26429715,82.886,82.772,3.04447957]
[1647006054597,120.8,82.884,82.76,18.116]
[1647006054795,9.08047957,82.885,82.759,48.518]
[1647006054796,120.8,82.869,82.761,62.81537913]
[1647006054996,120.8,82.859,82.761,65.8598587]
[1647006055199,14.42,82.86,82.761,65.8598587]
[1647006055200,120.8,82.856,82.762,3.04447957]
[1647006055400,6.037,82.855,82.762,3.04447957]
[1647006055596,120.8,82.854,82.761,88.15922546]
[1647006055897,24.424,82.853,82.763,25.34384633]
[1647006056097,30.462,82.853,82.77,18.1128]
[1647006056901,120.8,82.852,82.77,18.1128]
[1647006057300,6.037,82.851,82.77,18.1128]
[1647006057701,6.037,82.852,82.77,18.1128]
[1647006057901,126.837,82.852,82.77,18.1128]
[1647006058099,24.424,82.853,82.77,18.1128]
[1647006058500,6.037,82.852,82.77,18.1128]
[1647006058700,6.037,82.852,82.77,21.15727957]
[1647006059499,6.037,82.852,82.77,18.1128]
[1647006061001,6.037,82.852,82.79,18.1104]
[1647006061201,6.037,82.852,82.791,39.53989976]
[1647006061903,6.037,82.852,82.768,113.7]
[1647006062103,6.037,82.852,82.78,18.1124]
[1647006063103,126.837,82.852,82.768,113.7]
[1647006063303,131.587,82.852,82.77,18.1149]
[1647006063704,10.787,82.852,82.77,18.1149]
[1647006064204,10.787,82.852,82.771,57.83003099]
[1647006064403,6.037,82.852,82.771,57.83003099]
[1647006064804,6.037,82.852,82.78,18.1128]
[1647006065407,24.424,82.853,82.78,18.1128]
[1647006066207,6.037,82.852,82.78,18.1128]
[1647006066405,24.424,82.853,82.78,18.1128]
[1647006066705,24.424,82.853,82.78,36.5094]
[1647006067407,24.424,82.853,82.781,123.84447957]
[1647006067606,15.80667334,82.857,82.801,44.5252479]
[1647006068108,15.80667334,82.857,82.801,69.78242756]
[1647006068506,15.80667334,82.857,82.81,18.1061]
[1647006069006,6.035,82.888,82.81,18.1061]
[1647006069306,6.035,82.888,82.811,148.92261757]
[1647006069512,6.035,82.905,82.812,6.0]
[1647006069711,6.034,82.921,82.831,120.8]
[1647006069907,6.034,82.921,82.833,120.8]
[1647006070110,55.27577009,82.92,82.834,6.0]
[1647006070305,55.27577009,82.92,82.835,120.8]
[1647006070506,55.27577009,82.92,82.836,6.0]
[1647006070709,6.032,82.919,82.851,120.8]
[1647006070906,6.032,82.919,82.852,6.0]
[1647006071106,6.032,82.919,82.851,120.8]
[1647006071908,6.032,82.919,82.87,18.0909]
[1647006072108,6.032,82.919,82.871,44.5252479]
[1647006073510,6.032,82.919,82.836,3.04447957]
[1647006073511,120.8,82.919,82.82,14.42]
[1647006073710,120.8,82.917,82.821,6.0]
[1647006074012,3.04447957,82.916,82.821,6.0]
[1647006074409,3.04447957,82.916,82.822,47.43137078]
[1647006074625,3.04447957,82.916,82.823,6.0]
[1647006074810,6.033,82.915,82.823,6.0]
[1647006075213,18.0995,82.91,82.83,18.1022]
[1647006075511,6.033,82.909,82.831,6.0]
[1647006075710,6.033,82.915,82.831,6.0]
[1647006075914,6.033,82.915,82.823,6.0]
[1647006076112,3.04447957,82.914,82.822,47.43137078]
[1647006076314,120.8,82.899,82.813,46.7361]
[1647006076516,6.034,82.898,82.813,46.7361]
[1647006076713,120.8,82.897,82.813,46.7361]
[1647006076913,6.034,82.896,82.813,46.7361]
[1647006077112,6.034,82.896,82.8,17.8664]
[1647006077316,0.788951,82.895,82.811,64.10904934]
[1647006077517,120.8,82.879,82.794,3.04447957]
[1647006077714,120.8,82.869,82.782,3.04447957]
[1647006077914,120.8,82.869,82.769,74.6524]
[1647006078115,6.037,82.868,82.771,3.04447957]
[1647006078313,120.8,82.867,82.769,74.6524]
[1647006078517,120.8,82.864,82.769,74.6524]
[1647006078713,120.8,82.859,82.769,74.6524]
[1647006078914,13.99777978,82.839,82.77,18.115]
[1647006079114,6.038,82.838,82.77,24.115]
[1647006080114,13.99777978,82.839,82.77,24.115]
[1647006080715,13.99777978,82.839,82.79,18.1101]
[1647006081915,13.99777978,82.839,82.77,34.30165923]
[1647006082116,13.99777978,82.839,82.77,6.0]
[1647006082422,13.99777978,82.839,82.769,74.6524]
[1647006082618,126.838,82.838,82.769,74.6524]
[1647006082818,18.1148,82.83,82.769,74.6524]
[1647006083019,18.1148,82.83,82.769,59.77694819]
[1647006084822,18.1148,82.83,82.768,113.7]
[1647006085124,18.1148,82.83,82.77,18.1152]
[1647006085623,18.1148,82.83,82.768,113.7]
[1647006085825,6.038,82.829,82.76,3.04447957]
[1647006086023,18.1176,82.82,82.76,3.04447957]
[1647006086226,120.8,82.819,82.75,18.1192]
[1647006086424,126.839,82.818,82.75,18.1192]
[1647006087123,120.8,82.818,82.751,53.88021845]
[1647006087525,120.8,82.819,82.75,18.1192]
[1647006087725,18.119,82.82,82.75,18.1192]
[1647006088524,18.119,82.82,82.751,57.22592155]
[1647006088827,18.1157,82.83,82.76,18.1173]
[1647006089024,6.039,82.829,82.76,18.1173]
[1647006090024,6.039,82.837,82.761,120.8]
[1647006090224,13.99777978,82.839,82.78,18.1085]
[1647006090427,13.99777978,82.839,82.781,45.12935734]
[1647006090625,6.037,82.838,82.762,3.04447957]
[1647006091028,18.1153,82.83,82.747,46.66405923]
[1647006091227,18.1153,82.83,82.747,21.40687957]
[1647006091429,18.1153,82.83,82.76,18.1167]
[1647006092427,6.037,82.838,82.76,18.1167]
[1647006092828,13.99777978,82.839,82.762,56.32197234]
[1647006093027,13.99777978,82.839,82.78,18.1106]
[1647006094429,134.79777978,82.839,82.763,26.88807957]
[1647006094630,134.79777978,82.839,82.763,23.8436]
[1647006094829,120.8,82.837,82.763,23.8436]
[1647006095030,120.8,82.835,82.763,23.8436]
[1647006095228,6.038,82.836,82.763,23.8436]
[1647006095229,120.8,82.829,82.763,23.8436]
[1647006095429,6.038,82.828,82.763,23.8436]
[1647006096436,18.1185,82.82,82.763,23.8436]
[1647006097231,6.039,82.837,82.763,23.8436]
[1647006097431,18.1158,82.83,82.763,23.8436]